bitfinex-derivatives/quotes_SOLF0:USTF0_20220108
["timestamp","ask_amount","ask_price","bid_price","bid_amount"]
[1641611329801,15.20093272,139.62,139.55,7.15640319]
[1641611330000,15.20093272,139.62,139.57,4.0]
[1641611330200,15.20093272,139.62,139.6,27.66479]
[1641611330400,40.49129807,139.65,139.6,33.15179]
[1641611330802,15.18541712,139.66,139.6,33.15179]
[1641611332004,18.54968645,139.66,139.6,33.15179]
[1641611332303,4.0,139.61,139.51,29.54323079]
[1641611332502,4.0,139.57,139.51,29.54323079]
[1641611332702,5.738,139.57,139.47,59.59059076]
[1641611332902,5.738,139.57,139.44,37.7401]
[1641611333103,5.738,139.57,139.49,7.15947736]
[1641611334103,5.738,139.57,139.52,27.66479]
[1641611334304,4.0,139.59,139.52,27.66479]
[1641611335905,27.66479,139.62,139.52,33.18179]
[1641611336105,4.0,139.63,139.56,27.66479]
[1641611336305,4.0,139.63,139.56,33.68779]
[1641611336505,4.0,139.64,139.56,33.68779]
[1641611336705,4.0,139.66,139.56,33.68779]
[1641611337908,3.36031059,139.65,139.56,33.68779]
[1641611338208,3.36031059,139.65,139.6,27.66479]
[1641611341017,4.0,139.66,139.6,27.66479]
[1641611341715,4.0,139.66,139.6,34.63879]
[1641611343818,4.0,139.66,139.6,6.974]
[1641611344318,4.0,139.65,139.63,27.66479]
[1641611344517,4.0,139.65,139.6,34.63879]
[1641611347724,4.0,139.65,139.6,6.974]
[1641611348025,4.0,139.65,139.56,43.1269]
[1641611348324,4.0,139.65,139.6,27.66479]
[1641611349224,4.0,139.65,139.6,33.03779]
[1641611350828,27.66479,139.68,139.6,33.03779]
[1641611351027,31.66479,139.68,139.6,33.03779]
[1641611351230,27.66479,139.68,139.6,33.03779]
[1641611351428,4.0,139.69,139.6,33.03779]
[1641611351628,31.66479,139.7,139.61,20.0]
[1641611351827,31.66479,139.7,139.6,40.1918893]
[1641611351828,3.35551473,139.67,139.6,40.1918893]
[1641611352528,3.35551473,139.67,139.66,55.32958]
[1641611352728,4.0,139.73,139.66,62.68158]
[1641611352928,3.35947091,139.69,139.66,62.68158]
[1641611353129,63.86669,139.77,139.66,62.68158]
[1641611353527,4.0,139.75,139.66,62.68158]
[1641611353927,4.0,139.76,139.66,62.68158]
[1641611354128,63.86669,139.77,139.66,62.68158]
[1641611354329,16.31287924,139.76,139.69,27.66479]
[1641611354527,16.31287924,139.76,139.69,32.37079]
[1641611354927,12.31287924,139.76,139.69,32.37079]
[1641611355127,4.0,139.75,139.69,32.37079]
[1641611355327,6.87,139.75,139.67,36.7803]
[1641611355526,4.0,139.71,139.67,36.7803]
[1641611355729,6.795,139.71,139.66,19.53515481]
[1641611357928,27.66479,139.72,139.66,19.53515481]
[1641611359829,39.8735,139.76,139.66,24.56915481]
[1641611360229,35.8735,139.76,139.66,24.56915481]
[1641611360630,27.66479,139.72,139.66,5.034]
[1641611361034,4.0,139.71,139.62,27.66479]
[1641611361328,4.763,139.71,139.62,27.66479]
[1641611361529,4.0,139.7,139.62,27.66479]
[1641611361729,4.763,139.71,139.62,27.66479]
[1641611362530,4.0,139.7,139.62,27.66479]
[1641611362734,4.763,139.71,139.62,27.66479]
[1641611362931,19.90370783,139.71,139.62,27.66479]
[1641611363331,23.90370783,139.71,139.62,27.66479]
[1641611363632,19.90370783,139.71,139.62,27.66479]
[1641611363832,15.14070783,139.7,139.62,27.66479]
[1641611364731,15.14070783,139.71,139.62,27.66479]
[1641611365233,4.0,139.69,139.62,27.66479]
[1641611365433,50.13849783,139.72,139.62,27.66479]
[1641611365633,4.0,139.69,139.62,27.66479]
[1641611366234,4.0,139.69,139.58,7.1548671]
[1641611366235,5.824,139.69,139.58,7.1548671]
[1641611366432,20.96470783,139.69,139.58,7.1548671]
[1641611366633,31.66479,139.67,139.59,27.66479]
[1641611366833,27.66479,139.67,139.59,27.66479]
[1641611367436,42.80549783,139.67,139.59,27.66479]
[1641611367939,4.0,139.64,139.59,27.66479]
[1641611368138,46.80549783,139.67,139.59,27.66479]
[1641611368542,46.80549783,139.67,139.59,34.78179]
[1641611368939,4.0,139.66,139.59,34.78179]
[1641611369240,4.0,139.64,139.59,34.78179]
[1641611369639,42.80549783,139.67,139.59,34.78179]
[1641611370544,15.14070783,139.66,139.59,34.78179]
[1641611370744,4.0,139.62,139.59,34.78179]
[1641611370945,4.0,139.62,139.59,27.66479]
[1641611371147,4.0,139.64,139.59,27.66479]
[1641611371546,15.14070783,139.66,139.59,27.66479]
[1641611372648,4.0,139.6,139.59,27.66479]
[1641611372849,4.0,139.6,139.54,15.14070783]
[1641611373049,9.362,139.61,139.54,15.14070783]
[1641611373249,4.0,139.56,139.54,15.14070783]
[1641611373450,7.66,139.56,139.54,15.14070783]
[1641611374154,7.66,139.56,139.52,7.15793994]
[1641611375057,11.66,139.56,139.51,60.89517836]
[1641611375254,7.66,139.56,139.51,23.03887836]
[1641611375555,4.0,139.55,139.51,23.03887836]
[1641611375756,4.0,139.55,139.51,15.14070783]
[1641611375954,7.66,139.56,139.49,7.15973366]
[1641611377056,4.0,139.55,139.49,7.15973366]
[1641611377755,4.0,139.53,139.49,7.15973366]
[1641611377956,11.044,139.53,139.49,7.15973366]
[1641611378254,7.044,139.53,139.49,7.15973366]
[1641611378656,38.70879,139.53,139.49,7.15973366]
[1641611378856,34.70879,139.53,139.49,7.15973366]
[1641611379856,4.0,139.52,139.49,7.15973366]
[1641611380057,34.70879,139.53,139.49,7.15973366]
[1641611380357,34.70879,139.53,139.46,92.10806967]
[1641611380556,34.70879,139.53,139.46,49.96676967]
[1641611381558,34.70879,139.53,139.46,15.14070783]
[1641611381757,4.0,139.52,139.46,15.14070783]
[1641611381959,4.0,139.52,139.45,51.79290783]
[1641611382157,27.66479,139.53,139.45,51.79290783]
[1641611382358,4.0,139.52,139.45,51.79290783]
[1641611382658,27.66479,139.53,139.45,51.79290783]
[1641611382857,27.66479,139.53,139.47,5.04042661]
[1641611383459,4.0,139.52,139.47,5.04042661]
[1641611383757,27.66479,139.53,139.47,5.04042661]
[1641611383957,27.66479,139.53,139.47,5.506]
[1641611384157,4.0,139.56,139.47,5.506]
[1641611384560,5.04042661,139.59,139.47,5.506]
[1641611384758,4.0,139.56,139.47,5.506]
[1641611384960,4.0,139.56,139.49,27.66479]
[1641611385558,27.66479,139.57,139.49,27.66479]
[1641611385759,27.66479,139.57,139.49,32.70521661]
[1641611385959,4.0,139.56,139.49,32.70521661]
[1641611387360,27.66479,139.57,139.49,32.70521661]
[1641611387561,4.0,139.54,139.49,32.70521661]
[1641611387860,4.0,139.54,139.49,27.66479]
[1641611388459,27.66479,139.57,139.49,27.66479]
[1641611388663,4.0,139.55,139.49,27.66479]
[1641611390561,4.0,139.55,139.49,32.70521661]
[1641611391564,8.708,139.55,139.49,32.70521661]
[1641611391765,8.708,139.55,139.49,5.04042661]
[1641611392164,4.708,139.55,139.49,5.04042661]
[1641611394665,4.0,139.54,139.49,5.04042661]
[1641611394968,8.708,139.55,139.49,5.04042661]
[1641611395167,4.0,139.55,139.49,12.67242661]
[1641611395869,27.66479,139.56,139.49,12.67242661]
[1641611396068,4.0,139.56,139.5,6.73328803]
[1641611396271,5.04042661,139.58,139.5,6.73328803]
[1641611396471,4.0,139.56,139.5,6.73328803]
[1641611397071,4.0,139.56,139.51,5.04042661]
[1641611397271,4.0,139.56,139.52,27.66479]
[1641611398075,4.0,139.56,139.52,32.70521661]
[1641611398972,4.0,139.55,139.52,32.70521661]
[1641611399273,5.04042661,139.58,139.52,32.70521661]
[1641611399673,4.0,139.57,139.52,32.70521661]
[1641611401575,10.585,139.57,139.52,32.70521661]
[1641611401775,15.62542661,139.57,139.52,32.70521661]
[1641611402076,15.62542661,139.57,139.52,5.04042661]
[1641611403277,5.04042661,139.56,139.53,5.04042661]
[1641611404178,5.04042661,139.55,139.53,6.74161472]
[1641611405881,9.04042661,139.55,139.53,6.74161472]
[1641611406883,5.04042661,139.55,139.53,6.74161472]
[1641611407586,9.04042661,139.55,139.53,6.74161472]
[1641611408186,9.04042661,139.55,139.52,5.04042661]
[1641611409183,4.0,139.55,139.53,5.04042661]
[1641611412287,4.0,139.55,139.54,5.04042661]
[1641611412587,5.04042661,139.56,139.54,5.04042661]
[1641611413189,5.04042661,139.57,139.55,5.04042661]
[1641611413790,5.04042661,139.57,139.55,10.51742661]
[1641611414188,4.0,139.59,139.56,5.04042661]
[1641611414189,5.04042661,139.58,139.56,5.04042661]
[1641611415089,5.04042661,139.59,139.54,16.84189594]
[1641611415388,5.04042661,139.59,139.54,24.76562033]
[1641611415589,5.04042661,139.59,139.56,27.66479]
[1641611415991,9.04042661,139.6,139.58,5.07760815]
[1641611416490,5.04042661,139.6,139.58,5.07760815]
[1641611416889,53.46710783,139.63,139.56,27.66479]
[1641611417089,53.46710783,139.63,139.57,6.77298406]
[1641611417890,15.14070783,139.63,139.57,6.77298406]
[1641611418090,4.0,139.61,139.56,27.66479]
[1641611418290,9.07186993,139.6,139.54,27.66479]
[1641611418491,16.37586993,139.6,139.54,27.66479]
[1641611418692,16.37586993,139.6,139.53,52.84640783]
[1641611418891,11.304,139.6,139.53,52.84640783]
[1641611419092,7.304,139.6,139.56,5.0692771]
[1641611419890,11.304,139.6,139.56,5.0692771]
[1641611420093,5.06956367,139.59,139.55,5.06956367]
[1641611420894,7.304,139.6,139.54,1.69967341]
[1641611421593,15.14070783,139.62,139.55,5.06938247]
[1641611421793,5.06938247,139.59,139.55,5.06938247]
[1641611422393,27.66479,139.6,139.54,1.69967341]
[1641611422994,4.0,139.58,139.54,1.69967341]
[1641611423295,4.0,139.55,139.54,6.76905129]
[1641611423495,10.624,139.55,139.54,6.76905129]
[1641611424294,10.624,139.55,139.53,5.06937788]
[1641611424494,7.00552136,139.55,139.53,5.06937788]
[1641611425194,7.00552136,139.55,139.51,1.69967341]
[1641611425394,0.38152136,139.52,139.51,1.69967341]
[1641611425598,5.92252136,139.52,139.51,1.69967341]
[1641611425794,5.541,139.52,139.51,1.69967341]
[1641611428099,5.92252136,139.52,139.51,1.69967341]
[1641611428702,5.92252136,139.52,139.49,23.05354097]
[1641611428900,0.38152136,139.5,139.49,23.05354097]
[1641611429903,0.38152136,139.5,139.45,30.21532569]
[1641611430103,0.38152136,139.47,139.45,30.21532569]
[1641611430505,4.0,139.51,139.45,30.21532569]
[1641611430703,0.38152136,139.46,139.45,30.21532569]
[1641611431004,0.38152136,139.46,139.45,7.16178472]
[1641611431406,4.38152136,139.46,139.44,15.14070783]
[1641611431603,4.0,139.45,139.41,40.39525524]
[1641611431803,0.38152136,139.42,139.41,40.39525524]
[1641611432004,8.00252136,139.42,139.39,40.39525524]
[1641611432204,0.38152136,139.4,139.39,40.39525524]
[1641611433208,0.38152136,139.4,139.36,40.19879311]
[1641611433406,7.621,139.42,139.36,40.19879311]
[1641611434508,7.621,139.42,139.36,4.07199311]
[1641611434509,0.38152136,139.37,139.36,4.07199311]
[1641611434808,6.22952136,139.37,139.34,38.5378]
[1641611435009,0.38152136,139.35,139.33,40.39525524]
[1641611435209,5.848,139.37,139.33,40.39525524]
[1641611435508,0.38152136,139.34,139.33,40.39525524]
[1641611435709,7.92552136,139.34,139.33,40.39525524]
[1641611436109,7.92552136,139.34,139.29,80.6298954]
[1641611436310,7.92552136,139.34,139.29,44.4683954]
[1641611436611,7.544,139.34,139.3,27.66479]
[1641611440610,7.544,139.34,139.33,5.03009741]
[1641611440812,5.848,139.37,139.33,5.03009741]
[1641611441012,0.38152136,139.38,139.33,5.03009741]
[1641611441212,0.38152136,139.37,139.33,5.03009741]
[1641611441510,0.38152136,139.37,139.35,5.03009741]
[1641611442613,0.38152136,139.37,139.34,5.03009741]
[1641611442812,7.25452136,139.37,139.34,5.03009741]
[1641611443311,6.873,139.37,139.34,5.03009741]
[1641611443611,0.38152136,139.35,139.34,5.03009741]
[1641611444312,0.38152136,139.35,139.33,5.03009741]
[1641611444712,6.873,139.37,139.33,5.03009741]
[1641611445412,0.38152136,139.34,139.33,5.03009741]
[1641611445612,7.94252136,139.34,139.33,5.03009741]
[1641611447213,7.94252136,139.34,139.3,32.69488741]
[1641611447414,7.561,139.34,139.3,32.69488741]
[1641611447614,0.38152136,139.31,139.3,32.69488741]
[1641611447814,5.512,139.31,139.3,32.69488741]
[1641611448517,5.512,139.31,139.3,27.66479]
[1641611449218,0.38152136,139.33,139.3,27.66479]
[1641611450417,10.873,139.37,139.31,5.03009741]
[1641611450917,27.66479,139.35,139.31,5.03009741]
[1641611451116,27.66479,139.35,139.3,27.66479]
[1641611451117,27.66479,139.35,139.3,32.69488741]
[1641611452021,27.66479,139.35,139.31,5.03009741]
[1641611453023,0.38152136,139.32,139.31,5.03009741]
[1641611453223,7.28152136,139.32,139.31,5.03009741]
[1641611453723,7.28152136,139.32,139.3,5.03009741]
[1641611453924,6.9,139.32,139.3,5.03009741]
[1641611454223,0.38152136,139.31,139.3,5.03009741]
[1641611455125,0.38152136,139.31,139.25,75.2321029]
[1641611456226,0.38152136,139.31,139.26,48.24389917]
[1641611456626,6.9,139.32,139.26,48.24389917]
[1641611456926,0.38152136,139.29,139.26,48.24389917]
[1641611457126,5.66152136,139.29,139.26,48.24389917]
[1641611457526,5.28,139.29,139.26,48.24389917]
[1641611457725,0.38152136,139.28,139.26,48.24389917]
[1641611457925,0.38152136,139.28,139.26,7.84864393]
[1641611458126,0.38152136,139.27,139.26,7.84864393]
[1641611458728,0.38152136,139.27,139.25,40.39525524]
[1641611459027,5.28,139.29,139.24,7.84864393]
[1641611459028,32.94479,139.29,139.24,7.84864393]
[1641611459227,0.38152136,139.27,139.24,7.84864393]
[1641611461028,34.45679,139.29,139.24,7.84864393]
[1641611461729,0.38152136,139.26,139.24,7.84864393]
[1641611461930,6.16052136,139.26,139.24,7.84864393]
[1641611463130,6.16052136,139.26,139.25,40.39525524]
[1641611463930,6.16052136,139.26,139.24,40.39525524]
[1641611464931,5.779,139.26,139.24,40.39525524]
[1641611465233,0.38152136,139.3,139.24,40.39525524]
[1641611465432,27.66479,139.32,139.24,51.18604874]
[1641611466231,38.2099,139.34,139.24,51.18604874]
[1641611466433,0.38152136,139.32,139.29,3.61847864]
[1641611466631,40.5255,139.39,139.29,9.10347864]
[1641611466831,0.38152136,139.35,139.31,27.66479]
[1641611467230,0.38152136,139.36,139.31,27.66479]
[1641611467432,5.07106832,139.4,139.32,3.61847864]
[1641611467633,0.38152136,139.38,139.32,9.07347864]
[1641611467834,0.38152136,139.38,139.32,5.455]
[1641611468732,0.38152136,139.38,139.36,15.19548738]
[1641611469233,31.66479,139.42,139.36,15.19548738]
[1641611469935,0.38152136,139.38,139.35,16.88857564]
[1641611470232,34.07179,139.42,139.35,16.88857564]
[1641611470435,0.38152136,139.39,139.35,16.88857564]
[1641611470833,27.66479,139.42,139.35,16.88857564]
[1641611471033,0.38152136,139.39,139.35,16.88857564]
[1641611471735,0.38152136,139.39,139.36,15.19548738]
[1641611474939,0.38152136,139.39,139.38,5.0564676]
[1641611478444,0.38152136,139.39,139.36,24.73721957]
[1641611478642,0.38152136,139.37,139.36,24.73721957]
[1641611478842,5.589,139.37,139.36,24.73721957]
[1641611479243,5.589,139.37,139.36,6.74896918]
[1641611480044,0.38152136,139.39,139.35,15.19548738]
[1641611480545,27.66479,139.42,139.35,15.19548738]
[1641611480746,0.38152136,139.37,139.35,15.19548738]
[1641611481346,6.473,139.4,139.35,15.19548738]
[1641611481646,6.473,139.4,139.34,24.76703814]
[1641611481848,0.38152136,139.39,139.34,24.76703814]
[1641611482751,55.32958,139.42,139.34,24.76703814]
[1641611482949,0.38152136,139.39,139.34,24.76703814]
[1641611483949,5.301,139.41,139.34,24.76703814]
[1641611484149,0.38152136,139.37,139.34,24.76703814]
[1641611484352,0.38152136,139.38,139.34,24.76703814]
[1641611484752,5.301,139.41,139.34,24.76703814]
[1641611484952,0.38152136,139.36,139.34,24.76703814]
[1641611485353,55.32958,139.42,139.34,24.76703814]
[1641611486157,56.86707823,139.42,139.35,2.46250177]
[1641611486354,1.53749823,139.41,139.35,2.46250177]
[1641611486956,27.66479,139.39,139.35,2.46250177]
[1641611487154,33.44379,139.39,139.35,2.46250177]
[1641611487355,33.44379,139.39,139.36,1.69308826]
[1641611488155,33.44379,139.39,139.36,4.15559003]
[1641611488757,33.44379,139.39,139.36,1.69308826]
[1641611488955,27.66479,139.39,139.36,4.15559003]
[1641611489659,1.53749823,139.43,139.36,4.15559003]
[1641611489858,1.53749823,139.43,139.37,1.69308826]
[1641611490059,1.53749823,139.42,139.37,1.69308826]
[1641611490962,27.66479,139.39,139.37,1.69308826]
[1641611491365,1.53749823,139.44,139.38,2.46250177]
[1641611491563,5.07106832,139.45,139.38,6.175]
[1641611491764,5.07106832,139.45,139.41,2.46250177]
[1641611491965,5.07106832,139.45,139.41,7.60450177]
[1641611492364,15.20164703,139.48,139.44,2.46250177]
[1641611492566,5.07106832,139.49,139.44,7.25950177]
[1641611492966,27.66479,139.47,139.44,7.25950177]
[1641611493766,27.66479,139.47,139.45,1.69308826]
[1641611496370,27.66479,139.47,139.45,6.75767557]
[1641611497272,27.66479,139.47,139.46,5.06458731]
[1641611498376,29.20228823,139.47,139.43,15.19548738]
[1641611498575,1.53749823,139.45,139.43,15.19548738]
[1641611498977,27.66479,139.44,139.43,15.19548738]
[1641611499176,27.66479,139.44,139.39,1.69308826]
[1641611500078,27.66479,139.44,139.39,4.15559003]
[1641611500280,27.66479,139.44,139.39,2.46250177]
[1641611500781,27.66479,139.44,139.4,2.46250177]
[1641611500981,27.66479,139.44,139.38,42.86027738]
[1641611501281,27.66479,139.44,139.4,1.69308826]
[1641611501681,27.66479,139.44,139.4,4.15559003]
[1641611502081,27.66479,139.44,139.4,1.69308826]
[1641611502282,27.66479,139.44,139.43,2.46250177]
[1641611503785,27.66479,139.44,139.43,4.15559003]
[1641611503983,27.66479,139.47,139.43,4.15559003]
[1641611504384,1.53749823,139.5,139.43,1.69308826]
[1641611504584,1.53749823,139.49,139.43,1.69308826]
[1641611504785,1.53749823,139.48,139.43,1.69308826]
[1641611504984,27.66479,139.46,139.43,1.69308826]
[1641611505384,27.66479,139.46,139.43,4.15559003]
[1641611505599,64.21244703,139.53,139.45,2.46250177]
[1641611505885,53.31244703,139.53,139.48,2.46250177]
[1641611506084,15.20164703,139.51,139.48,4.841]
[1641611506484,15.20164703,139.51,139.48,7.30350177]
[1641611507185,27.66479,139.52,139.48,7.30350177]
[1641611507389,27.66479,139.52,139.48,4.841]
[1641611507589,27.66479,139.52,139.47,2.46250177]
[1641611507890,27.66479,139.52,139.44,65.61199]
[1641611509694,27.66479,139.52,139.45,1.69328421]
[1641611509894,27.66479,139.52,139.46,2.46250177]
[1641611510291,27.66479,139.52,139.45,1.69328421]
[1641611510491,27.66479,139.52,139.46,2.46250177]
[1641611510691,27.66479,139.52,139.46,9.42450177]
[1641611511490,27.66479,139.52,139.46,6.962]
[1641611511690,27.66479,139.52,139.49,2.46250177]
[1641611511893,27.66479,139.52,139.49,10.05650177]
[1641611512093,27.66479,139.52,139.49,7.594]
[1641611512293,27.66479,139.52,139.49,10.05650177]
[1641611512694,27.66479,139.52,139.49,7.594]
[1641611514595,27.66479,139.52,139.49,10.05650177]
[1641611514795,27.66479,139.52,139.49,7.594]
[1641611516195,27.66479,139.52,139.51,2.46250177]
[1641611516394,27.66479,139.52,139.5,2.46250177]
[1641611516595,27.66479,139.52,139.49,10.05650177]
[1641611517799,27.66479,139.52,139.49,7.594]
[1641611517997,27.66479,139.52,139.47,27.66479]
[1641611518197,27.66479,139.52,139.48,2.46250177]
[1641611518398,27.66479,139.52,139.47,27.66479]
[1641611518799,27.66479,139.52,139.48,2.46250177]
[1641611519000,27.66479,139.52,139.44,80.80747738]
[1641611519200,32.94779,139.52,139.44,80.80747738]
[1641611519700,32.94779,139.52,139.47,2.46250177]
[1641611521700,32.94779,139.52,139.44,65.61199]
[1641611521900,1.53749823,139.5,139.44,2.46250177]
[1641611522099,1.53749823,139.48,139.43,15.19548738]
[1641611522300,7.79649823,139.48,139.43,15.19548738]
[1641611522703,7.79649823,139.48,139.43,17.65798915]
[1641611522906,7.79649823,139.48,139.42,27.66479]
[1641611522907,6.259,139.48,139.42,27.66479]
[1641611523102,44.40393526,139.52,139.46,2.46250177]
[1641611523301,44.40393526,139.52,139.46,7.93950177]
[1641611523702,44.40393526,139.52,139.46,5.477]
[1641611523901,44.40393526,139.52,139.46,7.93950177]
[1641611524201,44.40393526,139.52,139.46,5.477]
[1641611524401,29.20228823,139.52,139.46,5.477]
[1641611525304,29.20228823,139.52,139.45,2.46250177]
[1641611526006,1.53749823,139.47,139.42,45.32277915]
[1641611526204,8.63449823,139.47,139.42,45.32277915]
[1641611526403,7.097,139.47,139.43,2.46250177]
[1641611526807,7.097,139.47,139.44,2.46250177]
[1641611527009,7.097,139.47,139.42,42.86027738]
[1641611527207,44.40393526,139.52,139.45,2.46250177]
[1641611527407,44.40393526,139.52,139.45,8.58950177]
[1641611527909,44.40393526,139.52,139.45,6.127]
[1641611528110,29.20228823,139.52,139.46,1.69450109]
[1641611529108,29.20228823,139.52,139.45,2.46250177]
[1641611529109,1.53749823,139.51,139.45,2.46250177]
[1641611529309,1.53749823,139.51,139.43,1.69450109]
[1641611530111,29.20228823,139.52,139.46,2.46250177]
[1641611530312,15.20164703,139.54,139.51,2.46250177]
[1641611530511,15.20164703,139.54,139.53,2.46250177]
[1641611531514,15.20164703,139.56,139.53,2.46250177]
[1641611532813,15.20164703,139.56,139.48,38.82503631]
[1641611533013,4.91089017,139.57,139.48,54.02052369]
[1641611533914,80.86153526,139.58,139.53,2.46250177]
[1641611534115,29.20228823,139.58,139.53,2.46250177]
[1641611534917,3.37209008,139.57,139.54,2.46250177]
[1641611535722,3.37209008,139.57,139.52,35.43779]
[1641611536420,3.37209008,139.57,139.52,27.66479]
[1641611537622,3.37209008,139.57,139.54,2.46250177]
[1641611539022,1.53749823,139.56,139.5,2.46250177]
[1641611539223,1.53749823,139.56,139.48,45.32277915]
[1641611539424,27.66479,139.53,139.51,1.6957979]
[1641611539624,33.17079,139.53,139.51,1.6957979]
[1641611540224,34.70828823,139.53,139.45,42.86027738]
[1641611540425,33.17079,139.53,139.46,2.46250177]
[1641611541126,34.70828823,139.53,139.46,2.46250177]
[1641611541325,3.37285773,139.52,139.46,2.46250177]
[1641611541523,4.91035596,139.52,139.43,79.83447738]
[1641611541726,1.53749823,139.5,139.43,52.16968738]
[1641611541926,8.03749823,139.5,139.44,2.46250177]
[1641611542126,8.03749823,139.5,139.44,4.15795272]
[1641611542326,6.5,139.5,139.44,4.15795272]
[1641611542727,8.03749823,139.5,139.44,4.15795272]
[1641611543027,6.5,139.5,139.44,4.15795272]
[1641611543329,8.03749823,139.5,139.45,1.69545095]
[1641611543527,27.66479,139.48,139.45,1.69545095]
[1641611544329,27.66479,139.48,139.44,2.46250177]
[1641611545931,19.52279037,139.48,139.44,2.46250177]
[1641611548632,19.52279037,139.48,139.42,2.46250177]
[1641611548833,24.63779037,139.48,139.42,2.46250177]
[1641611549034,1.53749823,139.44,139.41,15.19548738]
[1641611549236,6.327,139.44,139.41,15.19548738]
[1641611549737,27.66479,139.43,139.38,2.46250177]
[1641611551836,27.66479,139.43,139.39,1.69083636]
[1641611552637,27.66479,139.43,139.38,2.46250177]
[1641611554939,27.66479,139.43,139.35,34.2981]
[1641611555641,27.66479,139.43,139.38,2.46250177]
[1641611559344,27.66479,139.43,139.38,5.617]
[1641611560146,29.20228823,139.43,139.38,5.617]
[1641611560545,29.20228823,139.43,139.36,5.04922366]
[1641611561051,27.66479,139.43,139.35,43.08252366]
[1641611561350,27.66479,139.43,139.4,2.46250177]
[1641611561546,27.66479,139.43,139.35,44.76883753]
[1641611561547,27.66479,139.43,139.37,7.33]
[1641611561747,27.66479,139.43,139.42,2.46250177]
[1641611561948,27.66479,139.43,139.42,9.07950177]
[1641611562448,27.66479,139.43,139.42,6.617]
[1641611566452,27.66479,139.43,139.39,2.46250177]
[1641611566853,1.53749823,139.46,139.39,2.46250177]
[1641611567254,1.53749823,139.45,139.39,2.46250177]
[1641611568053,27.66479,139.43,139.39,2.46250177]
[1641611568654,27.66479,139.43,139.4,2.46250177]
[1641611568855,27.66479,139.43,139.4,7.99650177]
[1641611569157,27.66479,139.43,139.4,5.534]
[1641611569359,5.04922366,139.46,139.42,2.46250177]
[1641611569957,5.04922366,139.46,139.4,41.5513]
[1641611570259,27.66479,139.46,139.42,5.04922366]
[1641611571162,27.66479,139.46,139.41,6.74232912]
[1641611571361,5.04922366,139.47,139.41,6.74232912]
[1641611571660,5.04922366,139.47,139.42,2.46250177]
[1641611572059,5.04922366,139.46,139.42,2.46250177]
[1641611572259,5.04922366,139.46,139.43,2.46250177]
[1641611572461,5.04922366,139.46,139.43,8.98350177]
[1641611572763,5.04922366,139.46,139.43,6.521]
[1641611572959,32.71401366,139.48,139.43,6.521]
[1641611573161,32.71401366,139.48,139.46,2.46250177]
[1641611573359,32.71401366,139.48,139.46,7.41950177]
[1641611573659,32.71401366,139.48,139.46,4.957]
[1641611574660,5.04922366,139.47,139.46,4.957]
[1641611576561,5.04922366,139.47,139.42,35.17651543]
[1641611576562,6.58672189,139.47,139.42,5.04922366]
[1641611576865,11.24422366,139.47,139.42,5.04922366]
[1641611577261,11.24422366,139.47,139.42,7.51172543]
[1641611577461,5.04922366,139.45,139.42,2.46250177]
[1641611578362,5.04922366,139.46,139.42,5.04922366]
[1641611579063,6.58672189,139.46,139.42,5.04922366]
[1641611579264,5.04922366,139.45,139.42,5.04922366]
[1641611579666,6.58672189,139.45,139.42,5.04922366]
[1641611579865,5.04922366,139.45,139.42,5.04922366]
[1641611580064,6.58672189,139.45,139.42,5.04922366]
[1641611580267,5.04922366,139.43,139.4,5.04922366]
[1641611580464,6.58672189,139.43,139.4,5.04922366]
[1641611580864,1.53749823,139.41,139.4,5.04922366]
[1641611581064,5.759,139.41,139.4,5.04922366]
[1641611581265,7.29649823,139.41,139.39,6.74577839]
[1641611581466,5.759,139.41,139.39,6.74577839]
[1641611581866,7.29649823,139.41,139.39,6.74577839]
[1641611582267,1.53749823,139.4,139.39,6.74577839]
[1641611582467,56.86707823,139.4,139.35,15.19548738]
[1641611582868,60.24930354,139.4,139.36,5.07861218]
[1641611583867,1.53749823,139.39,139.33,17.65798915]
[1641611584069,56.86707823,139.4,139.33,2.46250177]
[1641611584470,27.66479,139.37,139.33,2.46250177]
[1641611586768,1.53749823,139.4,139.33,2.46250177]
[1641611587370,27.66479,139.38,139.33,2.46250177]
[1641611589275,27.66479,139.38,139.31,72.9745]
[1641611589774,27.66479,139.38,139.31,88.16998738]
[1641611590176,27.66479,139.38,139.34,2.46250177]